fUSD/lending_fUSD_20250212
["ID","MTS","AMOUNT","RATE_DAILY","PERIOD"]
[352835933,1739353904349,-731.56,0.00019452,3]
[352835934,1739353904360,-668.89,0.00019452,3]
[352835935,1739353904370,-1419.35,0.00019452,3]
[352835936,1739353904380,-646.31,0.00019452,3]
[352835937,1739353904390,-513.32,0.00019452,3]
[352835938,1739353904400,-555.29395761,0.00019452,3]
[352835939,1739353904411,-827.83,0.00019452,3]
[352835940,1739353904422,-707.77,0.00019452,3]
[352835941,1739353904433,-676.72,0.00019452,3]
[352835942,1739353904443,-552.31421609,0.00019452,3]
[352835943,1739353904454,-583.33,0.00019452,3]
[352835944,1739353904463,-731.76,0.00019452,3]
[352835945,1739353904474,-819.97,0.00019452,3]
[352835946,1739353904484,-424.23464105,0.00019452,3]
[352835947,1739353904494,-400.06294324,0.00019452,3]
[352835948,1739353904505,-740.43,0.00019452,3]
[352835949,1739353904515,-150.0,0.00019452,2]
[352835950,1739353904525,-1000.0,0.00019458,14]
[352835951,1739353904536,-885.65,0.00019474,2]
[352835952,1739353904546,-153.0,0.00019482,2]
[352835953,1739353904555,-153.0,0.00019482,2]
[352835954,1739353904566,-263.27699,0.00019488,7]
[352835955,1739353904576,-1000.0,0.00019493,14]
[352835956,1739353904587,-1000.0,0.000195,2]
[352835957,1739353904598,-1500.0,0.0001951,2]
[352835958,1739353904609,-500.0,0.00019524,2]
[352835959,1739353904619,-1000.0,0.00019528,14]
[352835960,1739353904630,-1000.0,0.00019563,14]
[352835961,1739353904641,-2259.0,0.0001957,2]
[352835962,1739353904652,-1242.53923275,0.00019589,2]
[352835963,1739353904663,-2071.85739535,0.00019589,3]
[352835964,1739353904673,-592.72,0.00019589,3]
[352835965,1739353904683,-633.9125489,0.00019589,3]
[352835966,1739353904694,-517.06094265,0.00019589,3]
[352835967,1739353904704,-632.14,0.00019589,3]
[352835968,1739353904714,-628.24574369,0.00019589,3]
[352835969,1739353904723,-1574.78179196,0.00019589,3]
[352835970,1739353904733,-571.29026034,0.00019589,3]
[352835971,1739353904743,-586.95111662,0.00019589,3]
[352835972,1739353904752,-520.91,0.00019589,3]
[352835973,1739353904762,-632.99622409,0.00019589,3]
[352835974,1739353904772,-525.33518632,0.00019589,3]
[352835975,1739353904782,-2037.92030562,0.00019589,3]
[352835976,1739353904792,-565.03224483,0.00019589,3]
[352835977,1739353904803,-872.50317926,0.00019589,3]
[352835978,1739353904812,-606.32129897,0.00019589,3]
[352835979,1739353904822,-604.38507834,0.00019589,3]
[352835980,1739353904832,-607.53,0.00019589,3]
[352835981,1739353904842,-588.3770082,0.00019589,3]
[352835982,1739353904852,-605.03126606,0.00019589,3]
[352835983,1739353904862,-523.85889659,0.00019589,3]
[352835984,1739353904873,-731.69324227,0.00019589,3]
[352835985,1739353904883,-668.95,0.00019589,3]
[352835986,1739353905059,-1419.40953833,0.00019589,3]
[352835987,1739353905069,-646.37,0.00019589,3]
[352835988,1739353905078,-513.38260012,0.00019589,3]
[352835989,1739353905088,-827.90326835,0.00019589,3]
[352835990,1739353905097,-707.78512889,0.00019589,3]
[352835991,1739353905106,-676.94,0.00019589,3]
[352835992,1739353905115,-583.41,0.00019589,3]
[352835993,1739353905124,-731.7979438,0.00019589,3]
[352835994,1739353905134,-820.13870204,0.00019589,3]
[352835995,1739353905144,-740.48,0.00019589,3]
[352835996,1739353905153,-1000.0,0.00019598,14]
[352835997,1739353905163,-962.74,0.00019603,7]
[352835998,1739353905172,-962.74,0.00019603,7]
[352835999,1739353905183,-3290.64655191,0.0001961,2]
[352836000,1739353905193,-500.0,0.00019624,2]
[352836001,1739353905202,-1000.0,0.00019633,14]
[352836002,1739353905212,-39524.83756222,0.00019641,2]
[352836003,1739353905222,-1000.0,0.00019668,14]
[352836004,1739353905231,-8000.0,0.00019678,11]
[352836005,1739353905241,-150.0,0.00019683,2]
[352836006,1739353905255,-205867.29390898,0.000197,2]
[352836007,1739353905265,-11000.0,0.000197,3]
[352836008,1739353905274,-3000.0,0.000197,2]
[352836009,1739353905285,-1000.0,0.00019703,14]
[352836010,1739353905294,-500.0,0.00019724,2]
[352836011,1739353905304,-150.0,0.0001973,2]
[352836012,1739353905314,-1000.0,0.00019738,14]
[352836013,1739353905324,-4669.8079576,0.00019745,2]
[352836014,1739353905337,-4669.80795749,0.00019745,2]
[352836015,1739353905347,-4669.80795749,0.00019745,2]
[352836016,1739353905357,-451.04913237,0.0001977,2]
[352836017,1739353905366,-300.51935637,0.0001977,2]
[352836018,1739353905376,-1000.0,0.00019773,14]
[352836019,1739353905386,-3423.34352742,0.000198,2]
[352836020,1739353905396,-150.0,0.000198,2]
[352836021,1739353905405,-3387.16,0.000198,2]
[352836022,1739353905416,-1000.0,0.00019808,14]
[352836023,1739353905426,-500.0,0.00019824,2]
[352836024,1739353905436,-1000.0,0.00019843,14]
[352836025,1739353905447,-3004.79969973,0.0001987,2]
[352836026,1739353905457,-962.74,0.00019877,7]
[352836027,1739353905467,-962.74,0.00019877,7]
[352836028,1739353905476,-1000.0,0.00019878,14]
[352836029,1739353905487,-263.27699,0.00019888,7]
[352836030,1739353905497,-4698.33770949,0.000199,3]
[352836031,1739353905507,-204256.03974345,0.000199,7]
[352836032,1739353905517,-10966.79714538,0.000199,5]
[352836033,1739353905527,-5840.02053315,0.000199,2]
[352836034,1739353905537,-15779.97,0.000199,10]
[352836035,1739353905546,-179.23525826,0.000199,2]
[352836036,1739353905556,-179.23525824,0.000199,2]
[352836037,1739353905566,-1596.62319923,0.000199,2]
[352836038,1739353905575,-182.62473776,0.000199,2]
[352836039,1739353905585,-6155.2430382,0.000199,2]
[352836040,1739353905595,-1000.0,0.00019913,14]
[352836041,1739353905605,-500.0,0.00019924,2]
[352836042,1739353905615,-1000.0,0.00019948,14]
[352836043,1739353905625,-514.0,0.0001997,2]
[352836044,1739353905634,-1000.0,0.00019983,14]
[352836045,1739353905644,-205.88300896,0.0001999,7]
[352836046,1739353905654,-298.52473607,0.0002,2]
[352836047,1739353905664,-10000.0,0.0002,2]
[352836048,1739353905674,-1469.58343193,0.0002,2]
[352836049,1739353905685,-900.0,0.0002,2]
[352836050,1739353905694,-4264.93551592,0.0002,2]
[352836051,1739353905703,-524533.61877128,0.0002,2]
[352836052,1739353905712,-3835.57412002,0.0002,2]
[352836053,1739353905722,-45765.58655568,0.0002,2]
[352836054,1739353905732,-3950.0,0.0002,2]
[352836055,1739353905742,-24517.47925618,0.0002,20]
[352836056,1739353905751,-26017.24945287,0.0002,14]
[352836057,1739353905766,-1240.56944985,0.0002,2]
[352836058,1739353905775,-11736.52960926,0.0002,2]
[352836059,1739353905785,-1000.92991351,0.0002,2]
[352836060,1739353905794,-2150.74117122,0.0002,2]
[352836061,1739353905804,-1204.33435316,0.0002,2]
[352836062,1739353905815,-300.0,0.0002,2]
[352836063,1739353905825,-300.0,0.0002,2]
[352836064,1739353905834,-300.0,0.0002,2]
[352836065,1739353905844,-583.2847384,0.0002,2]
[352836066,1739353905854,-3000.0,0.0002,2]
[352836067,1739353905863,-3000.0,0.0002,2]
[352836068,1739353905873,-3000.0,0.0002,2]
[352836069,1739353905883,-3000.0,0.0002,2]
[352836070,1739353905893,-3000.0,0.0002,2]
[352836071,1739353905902,-1379.43,0.0002,2]
[352836072,1739353905912,-91133.68887414,0.0002,2]
[352836073,1739353905922,-139069.76386594,0.0002,2]
[352836074,1739353905934,-484.70757765,0.0002,30]
[352836075,1739353905944,-3855.98470441,0.0002,30]
[352836076,1739353905954,-800.0,0.0002,20]
[352836077,1739353905964,-2772.04868814,0.0002,30]
[352836078,1739353905974,-300.0126316,0.0002,2]
[352836079,1739353905984,-5000.0,0.0002,30]
[352836080,1739353905994,-5116.0,0.0002,30]
[352836081,1739353906003,-380.0,0.0002,2]
[352836082,1739353906012,-5617.4380128,0.0002,2]
[352836083,1739353906022,-19578.74,0.0002,5]
[352836084,1739353906032,-200.0,0.0002,7]
[352836085,1739353906042,-5817.64381368,0.0002,2]
[352836086,1739353906052,-105867.17777068,0.0002,30]
[352836087,1739353906062,-10000.0,0.0002,4]
[352836088,1739353906072,-105784.5103305,0.0002,30]
[352836089,1739353906082,-900.0,0.0002,21]
[352836090,1739353906092,-8300.0,0.0002,4]
[352836091,1739353906103,-351379.82641168,0.0002,4]
[352836092,1739353906113,-7482.738982,0.0002,7]
[352836093,1739353906123,-2799.588011,0.0002,7]
[352836094,1739353906133,-1423.266974,0.0002,7]
[352836095,1739353906143,-160409.57839282,0.0002,10]
[352836096,1739353906152,-37000.0,0.0002,2]
[352836097,1739353906162,-4275.32745801,0.0002,30]
[352836098,1739353906172,-1512.93508734,0.0002,30]
[352836099,1739353906183,-75547.08032533,0.0002,30]
[352836100,1739353906193,-1395.70549047,0.0002,5]
[352836101,1739353906202,-80674.7429498,0.0002,30]
[352836102,1739353906212,-200.0,0.0002,5]
[352836103,1739353906222,-170119.57865944,0.0002,30]
[352836104,1739353906232,-225165.85404146,0.0002,14]
[352836105,1739353906241,-19631.39995384,0.0002,30]
[352836106,1739353906251,-1220.29564089,0.0002,10]
[352836107,1739353906273,-246.1551057,0.0002,30]
[352836108,1739353906285,-2784.41065169,0.0002,7]
[352836109,1739353906295,-472.44654729,0.0002,10]
[352836110,1739353906307,-502.28775803,0.0002,7]
[352836111,1739353906317,-1013.0,0.0002,6]
[352836112,1739353906330,-797.92086298,0.0002,7]
[352836113,1739353906341,-1649207.90862682,0.0002,15]
[352836114,1739353906351,-5370.18285294,0.0002,4]
[352836115,1739353906362,-11418.46786564,0.0002,30]
[352836116,1739353906373,-6000.0,0.0002,2]
[352836117,1739353906383,-2110.0,0.0002,2]
[352836118,1739353906394,-7500.0,0.0002,2]
[352836119,1739353906406,-6776.92214676,0.0002,15]
[352836120,1739353906417,-250000.0,0.0002,15]
[352836121,1739353906429,-180.57561921,0.0002,2]
[352836122,1739353906440,-1322.95591442,0.0002,2]
[352836123,1739353906450,-20100.0,0.0002,7]
[352836124,1739353906461,-3002.354181,0.0002,31]
[352836125,1739353906472,-3554.31608678,0.0002,2]
[352836126,1739353906482,-2000.0348,0.0002,2]
[352836127,1739353906492,-27920.23578248,0.0002,30]
[352836128,1739353906502,-2000.0,0.0002,2]
[352836129,1739353906513,-2000.0,0.0002,2]
[352836130,1739353906523,-2000.0,0.0002,2]
[352836131,1739353906535,-907.0416,0.0002,2]
[352836132,1739353906546,-5000.0,0.0002,30]
[352836133,1739353906555,-2000.0,0.0002,2]
[352836134,1739353906566,-2000.0,0.0002,2]
[352836135,1739353906576,-71748.21879559,0.0002,2]
[352836136,1739353906585,-402.60960774,0.0002,2]
[352836137,1739353906595,-241.56576464,0.0002,2]
[352836138,1739353906605,-161.0438431,0.0002,2]
[352836139,1739353906615,-13556.1568337,0.0002,2]
[352836140,1739353906626,-11746.38,0.0002,2]
[352836141,1739353906636,-500.0,0.0002,2]
[352836142,1739353906647,-503.809489,0.0002,30]
[352836143,1739353906658,-12500.0,0.0002,2]
[352836144,1739353906668,-10000.0,0.0002,2]
[352836145,1739353906682,-159.0,0.0002,2]
[352836146,1739353906692,-159.0,0.0002,2]
[352836147,1739353906702,-1000.0,0.0002,2]
[352836148,1739353906712,-1500.0,0.0002,5]
[352836149,1739353906723,-150.0,0.0002,5]
[352836150,1739353906733,-150.0,0.0002,5]
[352836151,1739353906742,-2000.0,0.0002001,2]
[352836152,1739353906753,-1000.0,0.00020017,14]
[352836153,1739353906763,-3832.171759,0.0002002,2]
[352836154,1739353906774,-606.73,0.00020024,2]
[352836155,1739353906789,-12500.0,0.0002004,2]
[352836156,1739353906800,-1000.0,0.00020052,14]
[352836157,1739353906810,-152.0,0.0002007,8]
[352836158,1739353906820,-12500.0,0.0002008,2]
[352836159,1739353906831,-1000.0,0.00020087,14]
[352836160,1739353906842,-263.27699,0.00020088,7]
[352836161,1739353906852,-2000.0,0.00020089,2]
[352836162,1739353906861,-500.0,0.00020096,2]
[352836163,1739353906871,-500.0,0.00020096,2]
[352836164,1739353906881,-10000.0,0.00020107,2]
[352836165,1739353906891,-11718.59074094,0.0002011,2]
[352836166,1739353906902,-12500.0,0.0002012,2]
[352836167,1739353906912,-1000.0,0.00020122,14]
[352836168,1739353906923,-150.0,0.00020135,120]
[352836169,1739353906934,-962.74,0.00020151,7]
[352836170,1739353906944,-962.74,0.00020151,7]
[352836171,1739353906954,-1000.0,0.00020157,14]
[352836172,1739353906965,-12500.0,0.0002016,2]
[352836173,1739353906976,-150.0,0.00020187,2]
[352836174,1739353906986,-1000.0,0.00020192,14]
[352836175,1739353906996,-23944.0,0.000202,14]
[352836176,1739353907006,-56902.03332537,0.000202,20]
[352836177,1739353907016,-12500.0,0.000202,2]
[352836178,1739353907026,-10000.0,0.00020213,2]
[352836179,1739353907037,-1000.0,0.00020227,14]
[352836180,1739353907047,-12500.0,0.0002024,2]
[352836181,1739353907057,-1000.0,0.00020262,14]
[352836182,1739353907067,-12500.0,0.0002028,2]
[352836183,1739353907077,-263.27699,0.00020288,7]
[352836184,1739353907087,-1000.0,0.00020297,14]
[352836185,1739353907098,-12500.0,0.0002032,2]
[352836186,1739353907108,-10000.0,0.0002032,2]
[352836187,1739353907119,-1000.0,0.00020332,14]
[352836188,1739353907130,-12500.0,0.0002036,2]
[352836189,1739353907140,-1000.0,0.00020367,14]
[352836190,1739353907151,-10000.0,0.0002039,5]
[352836191,1739353907161,-24890.1466056,0.000204,30]
[352836192,1739353907172,-286.479,0.000204,2]
[352836193,1739353907184,-8603.43,0.000204,2]
[352836194,1739353907194,-1000.0,0.00020402,14]
[352836195,1739353907204,-10000.0,0.00020427,2]
[352836196,1739353907214,-1000.0,0.00020437,14]
[352836197,1739353907224,-1671.94157673,0.00020441,120]
[352836198,1739353907235,-289.169,0.00020444,2]
[352836199,1739353907245,-1273.0,0.00020444,2]
[352836200,1739353907255,-566.0,0.00020444,2]
[352836201,1739353907266,-638.0,0.00020444,2]
[352836202,1739353907276,-694.275,0.00020444,2]
[352836203,1739353907290,-783.0,0.00020444,2]
[352836204,1739353907299,-2955.0,0.00020444,2]
[352836205,1739353907310,-1265.0,0.00020444,2]
[352836206,1739353907320,-908.0,0.00020444,2]
[352836207,1739353907558,-4026.0,0.00020444,2]
[352836208,1739353907569,-538.995,0.00020444,2]
[352836209,1739353907579,-150.0,0.00020444,2]
[352836210,1739353907588,-3914.0,0.00020444,2]
[352836211,1739353907598,-222.0,0.00020461,120]
[352836212,1739353907608,-2000.0,0.00020466,120]
[352836213,1739353907618,-2000.0,0.00020466,120]
[352836214,1739353907627,-2000.0,0.00020466,120]
[352836215,1739353907638,-2000.0,0.00020466,120]
[352836216,1739353907647,-2000.0,0.00020466,120]
[352836217,1739353907657,-2000.0,0.00020466,120]
[352836218,1739353907667,-2000.0,0.00020466,120]
[352836219,1739353907677,-2000.0,0.00020466,120]
[352836220,1739353907687,-2000.0,0.00020466,120]
[352836221,1739353907697,-2000.0,0.00020466,120]
[352836222,1739353907708,-1000.0,0.00020472,14]
[352836223,1739353907723,-263.27699,0.00020488,7]
[352836224,1739353907733,-500.0,0.00020494,120]
[352836225,1739353907743,-500.0,0.00020494,120]
[352836226,1739353907753,-500.0,0.00020494,120]
[352836227,1739353907762,-500.0,0.00020494,120]
[352836228,1739353907772,-752.0,0.00020494,120]
[352836229,1739353907781,-1000.0,0.00020499,15]
[352836230,1739353907791,-2110.0,0.000205,2]
[352836231,1739353907801,-20000.0,0.000205,7]
[352836232,1739353907811,-158.16439875,0.00020501,2]
[352836233,1739353907820,-1000.0,0.00020507,14]
[352836234,1739353907831,-382.0,0.00020523,120]
[352836235,1739353907841,-2169.1809444,0.00020527,120]
[352836236,1739353907851,-10000.0,0.00020533,2]
[352836237,1739353907867,-843.0,0.00020538,120]
[352836238,1739353907877,-1508.0,0.0002054,120]
[352836239,1739353907888,-161.38,0.0002054,120]
[352836240,1739353907898,-1000.0,0.00020542,14]
[352836241,1739353907908,-20478.95,0.00020548,2]
[352836242,1739353907917,-177.84,0.00020548,2]
[352836243,1739353907927,-205.265608,0.00020548,2]
[352836244,1739353907937,-39390.89790016,0.00020567,2]
[352836245,1739353907947,-39390.89790016,0.00020567,2]
[352836246,1739353907957,-1000.0,0.00020577,14]
[352836247,1739353907968,-1290.221752,0.00020604,2]
[352836248,1739353907978,-1000.0,0.00020612,14]
[352836249,1739353907988,-150.0,0.0002062,2]
[352836250,1739353907997,-10000.0,0.0002064,2]
[352836251,1739353908007,-450.0,0.00020642,4]
[352836252,1739353908017,-179.23525824,0.00020645,2]
[352836253,1739353908028,-1000.0,0.00020647,14]
[352836254,1739353908038,-1000.0,0.00020682,14]
[352836255,1739353908048,-263.27699,0.00020688,7]
[352836256,1739353908059,-150.0,0.00020692,2]
[352836257,1739353908069,-21736.42355383,0.000207,2]
[352836258,1739353908079,-1000.0,0.00020717,14]
[352836259,1739353908090,-152.0,0.00020732,9]
[352836260,1739353908100,-9017321.75378841,0.00020737,4]
[352836261,1739353908446,-500.0,0.00017123,2]
[352836262,1739353908456,-500.0,0.00017534,2]
[352836263,1739353908467,-646.60762,0.0002,2]
[352836264,1739353908477,-1953.5208854,0.00020737,4]
[352836265,1739353908527,-735.15365519,0.00020737,4]
[352836266,1739353908785,-157.724,0.00011444,2]
[352836267,1739353908796,-131.42600193,0.00016438,2]
[352836268,1739353908818,-527.77399807,0.00016438,2]
[352836269,1739353908829,-500.0,0.00016438,2]
[352836270,1739353908840,-659.2,0.00016575,2]
[352836271,1739353908849,-18.58427513,0.00016575,2]
[352836272,1739353908862,-481.41572487,0.00016575,2]
[352836273,1739353908873,-97.24558073,0.00016712,2]
[352836274,1739353908886,-561.95441927,0.00016712,2]
[352836275,1739353908896,-500.0,0.00016712,2]
[352836276,1739353908907,-659.2,0.00016849,2]
[352836277,1739353908917,-500.0,0.00016849,2]
[352836278,1739353908928,-575.64,0.00016986,2]
[352836279,1739353908938,-659.2,0.00016986,2]
[352836280,1739353908948,-500.0,0.00016986,2]
[352836281,1739353908958,-575.64,0.00017123,2]
[352836282,1739353908968,-659.2,0.00017123,2]
[352836283,1739353908979,-500.0,0.00017123,2]
[352836284,1739353908990,-500.0,0.0001726,2]
[352836285,1739353909006,-575.64,0.0001726,2]
[352836286,1739353909016,-575.64,0.00017397,2]
[352836287,1739353909028,-575.64,0.00017534,2]
[352836288,1739353909038,-500.0,0.00017671,2]
[352836289,1739353909049,-575.64,0.00017671,2]
[352836290,1739353909060,-500.0,0.00017808,2]
[352836291,1739353909070,-575.64,0.00017808,2]
[352836292,1739353909080,-500.0,0.00017945,2]
[352836293,1739353909091,-575.64,0.00017945,2]
[352836294,1739353909101,-500.0,0.00018082,2]
[352836295,1739353909111,-750124.39377058,0.00020737,4]
[352836296,1739353909123,-119774.93347008,0.00020737,4]
[352836297,1739353909155,-467.4210005,0.0001726,2]
[352836298,1739353909370,-191.7789995,0.0001726,2]
[352836299,1739353909382,-333.68891168,0.0001726,2]
[352836300,1739353909392,-659.2,0.00017397,2]
[352836301,1739353909402,-659.2,0.00017534,2]
[352836302,1739353909415,-659.2,0.00017671,2]
[352836303,1739353909425,-659.2,0.00017808,2]
[352836304,1739353909435,-659.2,0.00017945,2]
[352836305,1739353909446,-575.64,0.00018082,2]
[352836306,1739353909457,-659.2,0.00018082,2]
[352836307,1739353909467,-575.64,0.00018219,2]
[352836308,1739353909477,-500.0,0.00018219,2]
[352836309,1739353909488,-659.2,0.00018219,2]
[352836310,1739353909498,-575.64,0.00018356,2]
[352836311,1739353909508,-500.0,0.00018356,2]
[352836312,1739353909518,-659.2,0.00018356,2]
[352836313,1739353909529,-500.0,0.00018493,2]
[352836314,1739353909539,-659.2,0.00018493,2]
[352836315,1739353909548,-500.0,0.0001863,2]
[352836316,1739353909558,-659.2,0.0001863,2]
[352836317,1739353909568,-179287.26667905,0.00020737,4]
[352836318,1739353909917,-500.0,0.00016438,2]
[352836319,1739353909928,-1744.0,0.00016575,2]
[352836320,1739353909939,-500.0,0.00016575,2]
[352836321,1739353909949,-122.43,0.00016712,2]
[352836322,1739353909961,-377.57,0.00016712,2]
[352836323,1739353909971,-500.0,0.00016849,2]
[352836324,1739353909982,-282.51644033,0.00016986,2]
[352836325,1739353909992,-575.64,0.00018493,2]
[352836326,1739353910002,-575.64,0.0001863,2]
[352836327,1739353910012,-500.0,0.00018767,2]
[352836328,1739353910023,-659.2,0.00018767,2]
[352836329,1739353910033,-575.64,0.00018767,2]
[352836330,1739353910043,-500.0,0.00018904,2]
[352836331,1739353910052,-659.2,0.00018904,2]
[352836332,1739353910063,-575.64,0.00018904,2]
[352836333,1739353910073,-659.2,0.00019041,2]
[352836334,1739353910083,-575.64,0.00019041,2]
[352836335,1739353910093,-659.2,0.00019178,2]
[352836336,1739353910103,-575.64,0.00019178,2]
[352836337,1739353910113,-659.2,0.00019315,3]
[352836338,1739353910123,-575.64,0.00019315,3]
[352836339,1739353910132,-659.2,0.00019452,3]
[352836340,1739353910142,-575.64,0.00019452,3]
[352836341,1739353910152,-659.37,0.00019589,3]
[352836342,1739353910162,-5793.46961565,0.00020737,4]
[352836343,1739353910175,-2370.0,0.00020737,4]
[352836344,1739353910188,-99999.51388002,0.00020737,4]
[352836345,1739353910200,-8101.5530366,0.00020737,4]
[352836346,1739353910440,-311.13376032,0.00019589,3]
[352836347,1739353910452,-264.72443366,0.00019589,3]
[352836348,1739353910462,-529916.69848434,0.00020737,4]
[352836349,1739353912553,2890.0664,8.699e-05,2]
[352836351,1739354204370,200185.67104715,0.0002,120]
[352836739,1739355032388,-2995.83,8.973e-05,2]
[352836740,1739355032400,-294.33656805,8.973e-05,2]
[352836741,1739355032442,-488.02743195,8.973e-05,2]
[352836742,1739355032451,-180.45539977,9.87e-05,2]
[352836743,1739355032461,-500.0,9.87e-05,2]
[352836744,1739355032470,-500.0,9.87e-05,2]
[352836745,1739355032480,-151.46,0.00010137,2]
[352836746,1739355032489,-799.61853388,0.00011479,2]
[352836747,1739355032499,-150.0,0.00012513,2]
[352836748,1739355032509,-828.283,0.00012514,2]
[352836749,1739355032519,-182.573,0.00012514,2]
[352836750,1739355032530,-783.0,0.00012514,2]
[352836751,1739355032539,-1506.14599583,0.00012514,2]
[352836752,1739355032552,-1448.85400417,0.00012514,2]
[352836753,1739355032562,-1265.0,0.00012514,2]
[352836754,1739355032571,-908.0,0.00012514,2]
[352836755,1739355032580,-1828.67299583,0.00012514,2]
[352836756,1739355032591,-2197.32700417,0.00012514,2]
[352836757,1739355032601,-244.493,0.00012514,2]
[352836758,1739355032611,-3744.94748484,0.00012514,2]
[352836759,1739355032622,-169.05251516,0.00012514,2]
[352836760,1739355032631,-371.44544072,0.00012514,2]
[352836761,1739355032643,-737.55455928,0.00012514,2]
[352836762,1739355032653,-176.18,0.00013699,2]
[352836763,1739355032662,-735.15,0.00014382,2]
[352836764,1739355032672,-367.0,0.000145,2]
[352836765,1739355032682,-778.0,0.000145,2]
[352836766,1739355032692,-231.0,0.000145,2]
[352836767,1739355032707,-3328.0,0.00015,2]
[352836768,1739355032716,-409.46695647,0.0001541,2]
[352836769,1739355032726,-783.0,0.00015514,2]
[352836770,1739355032736,-1265.0,0.00015514,2]
[352836771,1739355032746,-219.078,0.00015514,2]
[352836772,1739355032755,-2100.11964324,0.00015514,2]
[352836773,1739355032770,-1925.88035676,0.00015514,2]
[352836774,1739355032783,-150.0,0.00015514,2]
[352836776,1739355032792,-3914.0,0.00015514,2]
[352836778,1739355032802,-1109.0,0.00015514,2]
[352836780,1739355032811,-163.27,0.00016049,2]
[352836782,1739355032821,-156.23,0.00016075,2]
[352836784,1739355032832,-304.4,0.00016083,3]
[352836786,1739355032842,-1090.03595407,0.00016109,2]
[352836788,1739355032851,-161.41,0.00016185,2]
[352836790,1739355032861,-255.24459117,0.00016191,2]
[352836792,1739355032875,-254.63540883,0.00016191,2]
[352836794,1739355032885,-27.57275659,0.00016198,2]
[352836797,1739355032897,-172.42724341,0.00016198,2]
[352836799,1739355032907,-161.41,0.00016205,2]
[352836801,1739355032916,-161.41,0.00016225,2]
[352836803,1739355032925,-161.41,0.00016245,2]
[352836804,1739355032935,-161.41,0.00016266,2]
[352836807,1739355032946,-162.04,0.0001632,2]
[352836808,1739355032955,-492.04032815,0.00016338,2]
[352836809,1739355032967,-39.01174307,0.00016338,2]
[352836810,1739355032976,-908.29841127,0.00016397,2]
[352836811,1739355032988,-416.79146914,0.00016397,2]
[352836812,1739355033000,-280.710003,0.00016397,2]
[352836813,1739355038383,-731.103313,0.00016397,2]
[352836814,1739355038397,-1932.26990627,0.00016397,2]
[352836815,1739355038407,-150.0,0.000164,2]
[352836816,1739355038416,-163.28,0.00016427,2]
[352836817,1739355038426,-731.22641953,0.00016437,2]
[352836818,1739355038443,-270.13072723,0.00016437,2]
[352836819,1739355038452,-500.0,0.00016438,2]
[352836820,1739355038462,-500.0,0.00016438,2]
[352836821,1739355038472,-500.0,0.00016438,2]
[352836822,1739355038492,-500.0,0.00016438,2]
[352836823,1739355038504,-500.0,0.00016438,2]
[352836824,1739355038513,-211.37810774,0.00016438,2]
[352836825,1739355038523,-500.0,0.00016438,2]
[352836826,1739355038532,-243.43559554,0.00016438,2]
[352836827,1739355038542,-500.0,0.00016438,2]
[352836828,1739355038552,-500.0,0.00016438,2]
[352836829,1739355038561,-500.0,0.00016438,2]
[352836830,1739355038572,-500.0,0.00016438,2]
[352836831,1739355038581,-202.51414052,0.00016438,2]
[352836832,1739355038591,-503.54125255,0.00016438,2]
[352836833,1739355038601,-500.0,0.00016438,2]
[352836834,1739355038610,-500.0,0.00016438,2]
[352836835,1739355038619,-500.0,0.00016438,2]
[352836836,1739355038630,-500.0,0.00016438,2]
[352836838,1739355038640,-500.0,0.00016438,2]